[Event "Polish Youth B18 Championship 2023"]
[Site "Jastrzebia Gora"]
[Date "2023.03.14"]
[Round "4.6"]
[White "Czernek, Tymon"]
[Black "Taranowicz, Michal"]
[Result "1/2-1/2"]
[ECO "B23"]
[WhiteElo "2314"]
[BlackElo "1900"]
[Annotator "TA"]
[PlyCount "192"]
[EventDate "2023.03.11"]
[EventType "swiss"]
[EventCountry "POL"]
[SourceTitle "playchess.com"]
[Source "ChessBase"]
[SourceQuality "1"]
[TimeControl "40/5400+30:1800+30"]

{[%evp 23,192,0,-6,-12,-6,-4,7,6,5,0,0,0,0,-18,0,-42,-53,-76,-80,-82,-81,-91,-84,-86,-58,-99,-27,-98,-71,-126,-93,-86,-53,-301,-300,-289,-306,-380,-372,-365,-41,-41,-41,-61,-47,-41,-44,-40,0,-61,-85,-103,-92,-218,-213,-308,-339,-339,-339,-339,-339,-339,-293,-289,-262,-339,-339,-507,-495,-499,-384,-404,-403,-395,-372,-429,-362,-292,-56,-56,-56,-56,-56,-56,-56,-89,-56,-56,-56,-513,-56,-56,-56,-56,-56,-56,-56,-56,-56,-56,-56,-56,-56,-56,-56,-56,-56,-56,-56,-56,-8,-8,0,-56,-56,-56,-8,-56,-56,-56,-56,-56,-56,-56,-56,-56,-8,-8,-8,-8,-8,-8,0,-8,-8,-8,-8,-8,-8,-8,-8,-8,-8,-8,-8,-8,-8,-8,-8,-8,-8,-8,-8,-8,-8,-8,-8,-8,0,-8,-7,-7,-7,-8,-8,-8,-8,-8,0,0,0]} 1. e4 {[%emt 0:00:04]} c5 {[%emt 0:01:24]} 2. Nc3 {[%emt 0:00:50]} g6 {[%emt 0:00:32]} 3. g3 {[%emt 0:02:39]} Bg7 {[%emt 0:00:11]} 4. Bg2 {[%emt 0:00:05]} Nc6 {[%emt 0:00:29]} 5. Nge2 {[%emt 0:00:15]} e6 {[%emt 0:00:22]} 6. O-O {[%emt 0:01:00]} Nge7 {[%cal Bg8e7,Be7c6,Bc6d4,Bd4e2][%mdl 32]} 7. d3 {[%emt 0:01:38]} O-O {[%emt 0:00:29]} 8. Be3 {[%emt 0:02:12]} Nd4 {[%emt 0:01:41]} 9. f4 {[%emt 0:00:55]} d6 {[%emt 0:02:20]} 10. Bf2 {[%emt 0:01:07]} Nec6 {[%emt 0:05:00]} 11. Rb1 {[%emt 0:03:24]} Rb8 {[%emt 0:01:22]} 12. Nxd4 {[%emt 0:01:48]} Nxd4 {[%emt 0:00:46]} 13. Ne2 {[%emt 0:00:30] B25: Closed Sicilian: 3 g3, lines without early Be3.} Nxe2+ {[%emt 0:05:57]} 14. Qxe2 {[%emt 0:00:02]} Qa5 {[%emt 0:00:08]} 15. a3 {[%emt 0:00:38] [#]} b5 $146 {[%emt 0:00:22]} ({Predecessor:} 15... Bd7 16. e5 dxe5 17. b4 cxb4 18. axb4 Qc7 19. Bxa7 Rbc8 20. Bc5 Rfd8 21. fxe5 b6 {0-1 Klemanic,E (2249)-Szegi,T (2233) SVK-chT1W 1314 2013 (1.4)}) 16. b4 {[%emt 0:12:47]} Qc7 {[%emt 0:03:12]} 17. bxc5 {[%emt 0:03:39]} dxc5 {[%emt 0:00:07]} 18. e5 {[%emt 0:00:09]} Bb7 {[%emt 0:08:15]} 19. Bxb7 {[%emt 0:12:27]} (19. Rxb5 $5 Bf3 20. Rxc5 Qxc5 21. Bxf3 Qxa3 22. Bd4 $11) 19... Rxb7 {[%emt 0:00:35]} 20. Qe4 {[%emt 0:00:13]} Rfb8 {[%emt 0:03:08]} 21. g4 {[%emt 0:10:33]} b4 {[%emt 0:03:08]} 22. a4 {[%emt 0:00:27]} Bf8 {[%emt 0:04:28]} 23. f5 {[%emt 0:01:33]} Qd7 {[%emt 0:00:17][%csl LRa4,LRf5]} 24. Be3 {[%emt 0:03:41]} Qd5 {[%emt 0:12:51]} (24... Qxa4 $17 25. Rf2 Qa2) 25. Qf4 {[%emt 0:06:19]} (25. Qxd5 $11 exd5 26. Kg2) 25... Bg7 {[%emt 0:00:56]} 26. f6 {[%emt 0:00:31]} (26. Qf3 $142) 26... Bf8 $17 {[%emt 0:00:04]} 27. Rb3 {[%emt 0:00:59]} Rc8 {[%emt 0:01:31]} 28. Qg3 $2 {[%emt 0:11:56]} ({White should try} 28. Qf3 $15) 28... c4 $19 {[%emt 0:02:14]} 29. dxc4 {[%emt 0:00:03]} Qxc4 {[%emt 0:00:06]} 30. Rf2 {[%emt 0:04:48]} Rd7 {[%emt 0:00:16] Repels Rd3} 31. Qf3 {[%emt 0:01:19]} Qd5 $2 {[%emt 0:05:14]} (31... Qa6 $19 32. Rb1 Qxa4) 32. Qxd5 $15 {[%emt 0:01:12]} Rxd5 {[%emt 0:00:05]} 33. Bxa7 {[%emt 0:01:20]} Ra8 {[%emt 0:01:03]} (33... Rxe5 $5 {[%cal Re5a5]} 34. Bb6 h5 $11) 34. Be3 {[%emt 0:04:21]} Rxe5 {[%emt 0:00:49]} 35. Rd2 {[%emt 0:00:47]} g5 {[%emt 0:05:19][%cal Oe5e3,Bg6g5,Bg5h4][%mdl 32]} (35... Rxa4 $2 36. Rd8 Rea5 37. Rbd3 $18) (35... h5 {is more complex.} 36. gxh5 Rxe3 37. Rxe3 Bc5) 36. Kf2 {[%emt 0:02:53]} ({White should play} 36. Bb6 $11) 36... h6 {[%emt 0:00:54]} 37. Rd7 {[%emt 0:03:16] [#]} Rea5 $1 {[%emt 0:03:48]} 38. h4 {[%emt 0:04:13]} gxh4 $19 {[%emt 0:00:23]} 39. c3 {[%emt 0:01:40]} (39. Rc7 {is a better defense.}) 39... Rxa4 {[%emt 0:00:52]} 40. cxb4 {[%emt 0:00:00]} Rxb4 {[%emt 0:00:00]} (40... Bxb4 $2 {loses.} 41. Bxh6 Ra2+ 42. Kf3 $19) 41. Rxb4 {[%emt 0:01:37]} Bxb4 {[%emt 0:07:36]} 42. Bxh6 {[%emt 0:00:13][%mdl 4096] Endgame KRB-KRB} Bc5+ {[%emt 0:00:14]} 43. Kg2 {[%emt 0:02:18]} Ra3 {[%emt 0:01:03]} 44. g5 {[%emt 0:05:27]} Ra7 {[%emt 0:13:29]} 45. Rd8+ {[%emt 0:04:38]} (45. Rxa7 $142 Bxa7 46. g6 fxg6 47. Bg5) 45... Kh7 {[%emt 0:00:08]} 46. Kh3 {[%emt 0:00:06]} Bf2 {[%emt 0:01:01]} 47. Kg4 {[%emt 0:02:05] Kh5 would kill now.} Ra4+ {[%emt 0:00:25]} 48. Kf3 {[%emt 0:00:19]} Bc5 {[%emt 0:03:03]} 49. Rc8 {[%emt 0:00:07]} Bd4 {[%emt 0:02:51]} 50. Rf8 {[%emt 0:01:31]} Ra7 {[%emt 0:01:24]} (50... Kg6 $19 51. Rg8+ Kf5) 51. Kg4 $15 {[%emt 0:06:16] [#]} Bxf6 {[%emt 0:00:29][%mdl 64] And now ...Bg7 would win. Deflection} 52. Kxh4 {[%emt 0:00:07][%cal Oh4h5]} Bg7 $1 {[%emt 0:00:20] Repels Kh5} 53. Bxg7 {[%emt 0:00:31]} Kxg7 {[%emt 0:00:05] KR-KR} 54. Re8 {[%emt 0:01:06]} Ra4+ {[%emt 0:00:08]} 55. Kh5 {[%emt 0:00:28]} Ra1 {[%emt 0:00:05] ...Rh1+ is the strong threat.} 56. Kg4 $2 {[%emt 0:00:41][%mdl 8192] [#]} (56. Rb8 $15) 56... Rh1 $2 {[%emt 0:00:23]} ({Better is} 56... Rg1+ $1 $19 57. Kf4 Rh1) 57. Ra8 $1 {[%emt 0:00:20]} Rh8 {[%emt 0:00:38]} 58. Ra1 {[%emt 0:00:47]} Kg6 {[%emt 0:00:07] Threatens to win with ...Rh5.} 59. Rf1 $1 {[%emt 0:01:08]} Rh2 {[%emt 0:00:59]} 60. Rf6+ {[%emt 0:00:15]} Kg7 {[%emt 0:00:11]} 61. Rf1 {[%emt 0:00:14]} Re2 {[%emt 0:01:20]} 62. Rf3 {[%emt 0:00:35]} Re4+ {[%emt 0:01:29]} 63. Kh5 {[%emt 0:00:02]} Re1 {[%emt 0:04:40]} 64. Kg4 {[%emt 0:00:20]} Rg1+ {[%emt 0:00:08]} 65. Kh5 {[%emt 0:00:17]} ({But not} 65. Kf4 $2 Kg6 66. Rh3 Rxg5 $19) 65... Kf8 {[%emt 0:00:13]} 66. Rf2 {[%emt 0:01:11]} Ke7 {[%emt 0:00:21]} (66... Rh1+ $15 67. Kg4 Rd1) 67. Kh6 $11 {[%emt 0:00:52]} Kf8 {[%emt 0:03:33]} (67... e5 $11) 68. Kh5 $15 {[%emt 0:00:06]} Rh1+ {[%emt 0:01:42]} 69. Kg4 {[%emt 0:00:05]} Ke7 {[%emt 0:00:53]} (69... Re1 $15) 70. Rf3 {[%emt 0:02:08]} (70. Rb2 $11) 70... Rg1+ {[%emt 0:04:36]} 71. Kf4 {[%emt 0:02:12]} Kf8 {[%emt 0:02:22]} 72. Rh3 {[%emt 0:00:13]} Kg7 {[%emt 0:00:08]} 73. Rh2 {[%emt 0:00:37]} Rf1+ {[%emt 0:04:25]} 74. Kg4 $1 {[%emt 0:00:08]} e5 {[%emt 0:02:09]} (74... Rc1 $15 {might be stronger.}) 75. Re2 $11 {[%emt 0:00:39] The position is equal.} Rf4+ {[%emt 0:00:07]} 76. Kh5 $1 {[%emt 0:00:42]} Rf5 {[%emt 0:00:37] Strongly threatening ...f6.} 77. Ra2 {[%emt 0:00:16]} Rf4 {[%emt 0:03:15]} 78. Ra7 {[%emt 0:01:10]} Rf1 {[%emt 0:02:20]} 79. Kg4 {[%emt 0:02:48]} e4 {[%emt 0:03:07]} (79... Kg6 $5 80. Ra6+ $8 Kh7 $11) 80. Re7 {[%emt 0:00:31]} Re1 {[%emt 0:00:16]} 81. Kf4 {[%emt 0:00:46]} Kg6 {[%emt 0:00:17]} 82. Ra7 {[%emt 0:00:42]} e3 {[%emt 0:02:39]} (82... Kh5 {simplifies} 83. Ra8 Rf1+ 84. Kxe4 Kxg5 85. Ke3 Rb1) 83. Ra6+ {[%emt 0:00:04]} Kg7 {[%emt 0:00:14]} 84. Kf3 {[%emt 0:00:07]} e2 {[%emt 0:01:42]} 85. Kf2 {[%emt 0:00:10] [#]} Rg1 $1 {[%emt 0:00:13][%mdl 64] Decoy, Clearance, Promotion} 86. Kxe2 {[%emt 0:00:05]} Rxg5 {[%emt 0:00:04]} 87. Kf3 {[%emt 0:00:07]} Rf5+ {[%emt 0:00:13]} 88. Kg4 {[%emt 0:00:11]} Rf1 {[%emt 0:00:06]} 89. Rb6 {[%emt 0:00:21]} Rc1 {[%emt 0:00:58]} 90. Ra6 $1 {[%emt 0:00:22]} Rf1 {[%emt 0:00:13]} 91. Rb6 {[%emt 0:00:05]} f6 {[%emt 0:00:02]} 92. Ra6 {[%emt 0:00:29]} Kg6 {[%emt 0:00:05]} 93. Ra5 {[%emt 0:00:26]} Rb1 {[%emt 0:00:07]} 94. Kf4 {[%emt 0:00:12]} Rb4+ {[%emt 0:00:14]} 95. Kf3 {[%emt 0:00:05]} f5 {[%emt 0:00:04]} 96. Ra8 {[%emt 0:00:16]} Rb3+ {[%emt 0:00:15] Weighted Error Value: White=0.44/Black=0.51} 1/2-1/2

[Event "Polish Youth B18 Championship 2023"]
[Site "Jastrzebia Gora"]
[Date "2023.03.14"]
[Round "4.7"]
[White "Dziendziel, Mateusz"]
[Black "Chyzy, Jakub"]
[Result "0-1"]
[ECO "C45"]
[WhiteElo "2084"]
[BlackElo "2250"]
[Annotator "TA"]
[PlyCount "52"]
[EventDate "2023.03.11"]
[EventType "swiss"]
[EventCountry "POL"]
[SourceTitle "playchess.com"]
[Source "ChessBase"]
[SourceQuality "1"]
[TimeControl "40/5400+30:1800+30"]

{[%evp 13,52,0,0,0,0,-41,-22,-28,-12,-32,-23,-18,-8,-39,-32,-68,-66,-66,-22,-51,-32,-123,-112,-110,-118,-289,-281,-308,-299,-301,-314,-292,-312,-533,-527,-898,-889,-884,-886,-848,-820]} 1. e4 {[%emt 0:00:03]} e5 {[%emt 0:00:03]} 2. Nf3 {[%emt 0:00:03][%cal Bg1f3,Bf3d4,Bd4c2][%mdl 32]} Nc6 {[%emt 0:00:04]} 3. d4 {[%emt 0:00:04]} exd4 {[%emt 0:00:04]} 4. Nxd4 {[%emt 0:00:03]} Qf6 {[%emt 0:00:06]} 5. Be3 {[%emt 0:08:16]} Bc5 {[%emt 0:00:17]} 6. c3 {[%emt 0:00:40]} Nge7 {[%emt 0:00:08]} 7. Nc2 {[%emt 0:02:04]} d6 $1 {[%emt 0:04:07][%mdl 4] is currently scoring better than 7...Bxe3.} 8. Nd2 {[%emt 0:01:31] C45: Scotch Game.} Qg6 {[%emt 0:16:18] [#]} 9. h4 $146 {[%emt 0:12:01]} ({Predecessor:} 9. Bxc5 dxc5 10. f4 O-O 11. Ne3 Re8 12. Be2 Qh6 13. O-O Be6 14. g4 Rad8 15. Qe1 f6 {0-1 Jarvenpaa,J (2063)-Soppela,J (2183) Heart of Finland op 16th 2006 (9)}) 9... f5 {[%emt 0:04:12]} 10. h5 {[%emt 0:01:28] The position is equal.} Qf7 {[%emt 0:09:51]} 11. Bb5 {[%emt 0:15:27][%cal Bf1b5,Bb5a4,Ba4b3][%mdl 32]} a6 {[%emt 0:09:37]} 12. Ba4 {[%emt 0:03:46]} f4 {[%emt 0:00:52]} 13. Bb3 {[%emt 0:01:30]} Qf6 {[%emt 0:08:04]} 14. Bxc5 {[%emt 0:00:31]} dxc5 {[%emt 0:00:02]} 15. Qe2 {[%emt 0:01:02][%cal Oh5h6]} Bd7 {[%emt 0:22:35][%cal Bc8d7,Bd7g4,Bg4f3][%mdl 32]} (15... Ne5 $5 {[%cal Rb7b5]}) 16. O-O-O {[%emt 0:01:00][%cal Oh5h6]} O-O-O $1 {[%emt 0:00:30]} 17. g3 {[%emt 0:16:32]} (17. Nf3 $15) 17... Ne5 $17 {[%emt 0:07:46] ...Bb5 is the strong threat.} 18. gxf4 {[%emt 0:22:03]} Qxf4 {[%emt 0:00:08] White must now prevent ...Bg4.} 19. Kb1 $2 {[%emt 0:00:43] Loses the game.} (19. Ne3 $17 {is a better defense.}) 19... Bg4 $19 {[%emt 0:05:36][%mdl 64] [#] Skewer} 20. f3 {[%emt 0:00:05]} Nxf3 {[%emt 0:00:42]} ({And not} 20... Bxf3 21. Nxf3 Nxf3 22. Qe3 Qxe3 23. Nxe3 $17) 21. Nxf3 {[%emt 0:00:14]} Bxf3 {[%emt 0:01:23]} ({Resist} 21... Qxf3 22. Be6+ Kb8 23. Bxg4 $18) 22. Rdf1 {[%emt 0:00:59]} Rhf8 {[%emt 0:05:46]} ({Don't take} 22... Qxe4 23. Qxf3 Qxf3 24. Rxf3 $18) 23. Qh2 {[%emt 0:05:41]} (23. Qe1) 23... Bxh1 {[%emt 0:01:29] Black is clearly winning.} 24. Qh3+ {[%emt 0:00:42]} Kb8 {[%emt 0:00:10]} 25. Rxh1 {[%emt 0:00:10]} Qxe4 {[%emt 0:01:42] Hoping for ...Rd3.} 26. Re1 {[%emt 0:00:27] [#]} c4 $1 {[%emt 0:00:41] Weighted Error Value: White=0.73/Black=0.07 (flawless)} 0-1

[Event "Polish Youth B18 Championship 2023"]
[Site "Jastrzebia Gora"]
[Date "2023.03.14"]
[Round "4.8"]
[White "Wilk, Igor"]
[Black "Ochedzan, Tymon"]
[Result "0-1"]
[ECO "B11"]
[WhiteElo "2058"]
[BlackElo "2240"]
[Annotator "TA"]
[PlyCount "80"]
[EventDate "2023.03.11"]
[EventType "swiss"]
[EventCountry "POL"]
[SourceTitle "playchess.com"]
[Source "ChessBase"]
[SourceQuality "1"]
[TimeControl "40/5400+30:1800+30"]

{[%evp 12,80,12,4,16,5,21,20,22,-3,-7,-58,-69,-67,-33,-118,-123,-132,-125,-127,-122,-122,-132,-132,-120,-164,-149,-137,-150,-137,-127,-131,-110,-118,-88,-112,-114,-117,-84,-74,0,0,0,0,0,-612,-584,-481,0,-347,-321,-420,-408,-552,-552,-552,-549,-517,-516,-29970,-29971,-29971,-29972,-29972,-29973,-29973,-29974,-29968,-4622,-29973,-29945]} 1. e4 {[%emt 0:00:03] Let's Check} c6 {[%emt 0:00:14]} 2. Nf3 {[%emt 0:00:14]} d5 {[%emt 0:00:12]} 3. Nc3 {[%emt 0:00:12]} Bg4 {[%emt 0:01:13]} 4. h3 {[%emt 0:00:10]} Bxf3 {[%emt 0:00:04]} 5. Qxf3 {[%emt 0:00:07]} e6 {[%emt 0:00:21]} 6. d3 {[%emt 0:00:46]} Nd7 {[%emt 0:02:42]} 7. g3 {[%emt 0:02:23] 7.Be2 is a critical line.} Bc5 {[%emt 0:08:24] B11: Caro-Kann: Two Knights Variation.} 8. Bd2 {[%emt 0:05:44]} Ne7 {[%emt 0:02:37]} 9. Bg2 {[%emt 0:02:02]} O-O {[%emt 0:00:57] [#] The position is equal.} 10. Qe2 $146 {[%emt 0:02:35]} ({Predecessor:} 10. O-O f5 11. exd5 exd5 12. Ne2 Ng6 13. d4 Bd6 14. Qb3 Nb6 15. h4 f4 16. h5 {½-½ Saric,I (2651)-Zelcic,R (2558) CRO-ch 12th Opatija 2012 (1)}) 10... Qc7 {[%emt 0:08:27]} 11. Nd1 {[%emt 0:11:22]} (11. h4 $11) 11... f5 $15 {[%emt 0:06:03]} 12. exd5 {[%emt 0:08:35]} Nxd5 {[%emt 0:03:57]} 13. Bxd5 {[%emt 0:04:26]} (13. Qxe6+ Kh8 14. Bxd5 Rae8 $17) ({White should play} 13. c3 $15) 13... exd5 $17 {[%emt 0:03:21]} 14. Bf4 {[%emt 0:03:35]} Qb6 {[%emt 0:06:15]} 15. O-O {[%emt 0:01:55]} (15. Qe6+ Kh8 16. O-O (16. Qxd7 $2 Rae8+ 17. Kf1 Re7 $19) 16... Rae8 17. Qxd7 Re7 $19) 15... Rae8 {[%emt 0:01:48]} 16. Qd2 {[%emt 0:00:35]} Ne5 {[%emt 0:01:23]} 17. Kg2 {[%emt 0:03:25] Prevents Nf3.} Ng6 {[%emt 0:02:46] Black is much more active.} 18. c3 {[%emt 0:05:31]} Nxf4+ {[%emt 0:06:17]} 19. Qxf4 {[%emt 0:00:13]} Re6 {[%emt 0:00:19]} 20. b4 {[%emt 0:07:48]} Bd6 {[%emt 0:00:20]} 21. Qf3 {[%emt 0:00:07]} f4 {[%emt 0:02:00] Hoping for ...fxg3.} 22. g4 {[%emt 0:00:46] White is weak on the dark squares} Rfe8 {[%emt 0:02:29]} 23. Rb1 {[%emt 0:05:20]} Qa6 $36 {[%emt 0:01:18][%mdl 2048] Black is in control.} 24. Rb2 {[%emt 0:05:54] Prevents Re2.} Qa3 {[%emt 0:03:20]} 25. b5 {[%emt 0:02:37]} Re1 {[%emt 0:03:34]} (25... Qa4 $17) 26. Rxe1 $11 {[%emt 0:03:33]} Rxe1 {[%emt 0:00:05]} 27. bxc6 {[%emt 0:00:15]} bxc6 {[%emt 0:02:10][%cal Oe1d1] ...Rxd1! is the strong threat.} 28. Rb7 $2 {[%emt 0:01:28][%mdl 8192] [#]} (28. Re2 $11 Rxe2 29. Qxe2) 28... Qc1 $1 $19 {[%emt 0:03:48]} (28... Qxa2 29. Rd7 Re6 30. g5 $11) 29. Rd7 {[%emt 0:03:23]} Be5 {[%emt 0:02:42]} (29... Bf8 $2 30. Ne3 Qxc3 31. Qxf4 $18) (29... Rxd1 $19 30. Kh2 Bf8) 30. Rxd5 $2 {[%emt 0:02:36][%mdl 8192]} Bf6 {[%emt 0:02:24]} (30... cxd5 31. Qxd5+ Kf8 32. Qd8+ Kf7 33. Qd7+ Kf8 34. Qd8+ Kf7 35. Qd7+ Kf8 36. Qd8+ $11) (30... Qxd1 31. Qxd1 Rxd1 32. Rxe5 $16) (30... Rxd1 31. Rxe5 Rh1 32. Qe2 (32. Qxc6 $2 Qf1+ {[%mdl 64] Skewer, Deflection, Double Attack} 33. Kf3 Rxh3+ 34. Ke4 Qg2+ 35. Kd4 Qxc6 $19) (32. Re8+ $2 Kf7 $19) 32... f3+ 33. Kxf3 Rxh3+ 34. Ke4 $11) 31. Rc5 {[%emt 0:05:00][%cal Oc5c6] Rxc6! would be deadly.} Qxd1 {[%emt 0:01:21]} (31... Rxd1 32. Rxc6 h6 33. Rc8+ Kh7 34. Qe4+ (34. Qd5 Rh1 $11) 34... g6 35. Qb7+ Bg7 36. Rc7 (36. Qxa7 $2 Rh1 $19) (36. Qf7 Rg1+ 37. Kf3 Qd1+ 38. Kxf4 g5+ 39. Ke4 Re1+ {[%mdl 64] Deflection} 40. Kd5 Qxd3+ 41. Kc5 Qxc3+ 42. Qc4 Qa5+ 43. Kd6 Qb6+ 44. Qc6 Be5+ 45. Ke6 Bc7+ 46. Kd7 Rd1+ {[%mdl 64] Deflection} 47. Ke7 Qxc6) 36... Rg1+ 37. Kh2 $18) 32. Qxc6 {[%emt 0:00:39]} f3+ {[%emt 0:01:55]} 33. Kg3 {[%emt 0:00:18]} Rg1+ {[%emt 0:00:21]} 34. Kf4 {[%emt 0:00:09][%cal Rc6e8]} Qd2+ {[%emt 0:00:22]} (34... Qxd3 $2 35. Qe8#) 35. Kxf3 {[%emt 0:01:42] [#]} (35. Kf5 $19 Qxd3+ 36. Qe4 Qd7+ 37. Qe6+ Qxe6+ 38. Kxe6 Re1+ 39. Kf5) 35... Qxd3+ {[%emt 0:00:17]} (35... Qxa2 36. Qe8#) 36. Kf4 {[%emt 0:00:06]} g5+ {[%emt 0:01:16]} ({Resist} 36... Qxh3 37. Qe8#) 37. Rxg5+ {[%emt 0:00:07]} Bxg5+ {[%emt 0:00:03]} 38. Kxg5 {[%emt 0:00:07]} Qg6+ {[%emt 0:00:28]} ({And not} 38... Qxh3 39. Qc8+ Kg7 40. Qd7+ Kf8 41. Qd8+ Kg7 42. Qf6+ Kg8 43. Qd8+ Kg7 44. Qf6+ Kg8 45. Qd8+ Kg7 $11) 39. Qxg6+ {[%emt 0:00:20]} hxg6 {[%emt 0:00:03]} 40. Kxg6 {[%emt 0:00:00]} Rf1 {[%emt 0:00:00] Weighted Error Value: White=0.87/Black=0.18 (very precise)} 0-1